[Event "Late-Titled-Tuesday-Blitz-January-23-2024"]
[Site "Chess.com"]
[Date "2024.01.23"]
[Round "6"]
[White "Ajedrecista3000"]
[Black "GMHess"]
[Result "1-0"]
[WhiteElo "2599"]
[BlackElo "2795"]
[TimeControl "180+1"]
[EndTime "15:04:12 PST"]
[Termination "Ajedrecista3000 won by resignation"]

1. c4 {[%clk 0:03:00.9]} 1... g6 {[%clk 0:03:00.3]} 2. g3 {[%clk 0:03:01]} 2...
Bg7 {[%clk 0:03:01.2]} 3. Bg2 {[%clk 0:03:01.6]} 3... c5 {[%clk 0:03:01.9]} 4.
Nc3 {[%clk 0:03:02.1]} 4... Nh6 {[%clk 0:03:02.7]} 5. h4 {[%clk 0:02:57.3]} 5...
Nf5 {[%clk 0:03:01.6]} 6. h5 {[%clk 0:02:57.8]} 6... Nc6 {[%clk 0:03:02.3]} 7.
d3 {[%clk 0:02:54.7]} 7... d6 {[%clk 0:03:02.7]} 8. Nf3 {[%clk 0:02:51.6]} 8...
Bd7 {[%clk 0:03:02]} 9. Bd2 {[%clk 0:02:49.6]} 9... a6 {[%clk 0:02:58.8]} 10. a3
{[%clk 0:02:46.7]} 10... b5 {[%clk 0:02:57]} 11. h6 {[%clk 0:02:37.2]} 11... Bf6
{[%clk 0:02:56.1]} 12. g4 {[%clk 0:02:37.2]} 12... Nfd4 {[%clk 0:02:56.1]} 13.
g5 {[%clk 0:02:37.6]} 13... Nxf3+ {[%clk 0:02:56]} 14. Bxf3 {[%clk 0:02:38.5]}
14... Be5 {[%clk 0:02:53.2]} 15. cxb5 {[%clk 0:02:34.1]} 15... axb5 {[%clk
0:02:40]} 16. Nxb5 {[%clk 0:02:31.5]} 16... Bxb2 {[%clk 0:02:35.1]} 17. Rb1
{[%clk 0:02:25.2]} 17... Be5 {[%clk 0:02:35.2]} 18. Qc2 {[%clk 0:02:19.1]} 18...
O-O {[%clk 0:02:32.6]} 19. Kf1 {[%clk 0:02:11.5]} 19... Rb8 {[%clk 0:02:30.9]}
20. a4 {[%clk 0:02:10.9]} 20... Nd4 {[%clk 0:01:59.7]} 21. Nxd4 {[%clk
0:02:10.2]} 21... Rxb1+ {[%clk 0:01:58.3]} 22. Qxb1 {[%clk 0:02:10.2]} 22...
Bxd4 {[%clk 0:01:58.9]} 23. a5 {[%clk 0:02:06.7]} 23... Qc7 {[%clk 0:01:59.3]}
24. Qb6 {[%clk 0:02:03.8]} 24... Qxb6 {[%clk 0:01:48.5]} 25. axb6 {[%clk
0:02:04.7]} 25... c4 {[%clk 0:01:08.7]} 26. Rh4 {[%clk 0:02:03.6]} 26... c3
{[%clk 0:00:57]} 27. Rxd4 {[%clk 0:02:03.3]} 27... cxd2 {[%clk 0:00:57]} 28. e3
{[%clk 0:02:04]} 28... Ra8 {[%clk 0:00:17.6]} 29. Ke2 {[%clk 0:01:51]} 29... Ra2
{[%clk 0:00:16.1]} 30. b7 {[%clk 0:01:07.6]} 30... Rb2 {[%clk 0:00:16.3]} 31.
Rc4 {[%clk 0:01:08.3]} 31... f5 {[%clk 0:00:13.1]} 32. Rc8+ {[%clk 0:01:05.1]}
32... Kf7 {[%clk 0:00:13.6]} 33. b8=Q {[%clk 0:01:04.7]} 33... Ba4 {[%clk
0:00:13.8]} 34. Rf8+ {[%clk 0:01:02.9]} 34... Ke6 {[%clk 0:00:13.6]} 35. Qc8+
{[%clk 0:00:58.6]} 1-0

[Event "Late-Titled-Tuesday-Blitz-January-23-2024"]
[Site "Chess.com"]
[Date "2024.01.23"]
[Round "6"]
[White "tgpgoat"]
[Black "olawsson"]
[Result "1-0"]
[WhiteElo "2425"]
[BlackElo "2170"]
[TimeControl "180+1"]
[EndTime "15:04:12 PST"]
[Termination "tgpgoat won on time"]

1. Nf3 {[%clk 0:03:00.9]} 1... d6 {[%clk 0:02:57.6]} 2. d4 {[%clk 0:03:01.8]}
2... g6 {[%clk 0:02:55.4]} 3. g3 {[%clk 0:03:02.7]} 3... Bg7 {[%clk 0:02:55.3]}
4. Bg2 {[%clk 0:03:03.6]} 4... Nf6 {[%clk 0:02:55.7]} 5. O-O {[%clk 0:03:04.5]}
5... O-O {[%clk 0:02:55.4]} 6. c4 {[%clk 0:03:05.1]} 6... c6 {[%clk 0:02:55.8]}
7. Nc3 {[%clk 0:03:05.3]} 7... Qa5 {[%clk 0:02:56.3]} 8. Bd2 {[%clk 0:03:05.1]}
8... Qh5 {[%clk 0:02:55.7]} 9. e4 {[%clk 0:03:04.6]} 9... Bg4 {[%clk 0:02:48.9]}
10. Re1 {[%clk 0:03:01.3]} 10... e5 {[%clk 0:02:48.4]} 11. dxe5 {[%clk
0:02:59.1]} 11... dxe5 {[%clk 0:02:48]} 12. Re3 {[%clk 0:02:58.2]} 12... Nbd7
{[%clk 0:02:28.2]} 13. Qc2 {[%clk 0:02:55.7]} 13... Bh6 {[%clk 0:02:24.8]} 14.
h3 {[%clk 0:02:53.2]} 14... Bxh3 {[%clk 0:01:54.6]} 15. Ree1 {[%clk 0:02:50.8]}
15... Rad8 {[%clk 0:01:30.2]} 16. Bxh6 {[%clk 0:02:47.7]} 16... Qxh6 {[%clk
0:01:29.5]} 17. Rad1 {[%clk 0:02:45.1]} 17... Ng4 {[%clk 0:01:20.6]} 18. Qd2
{[%clk 0:02:31.7]} 18... Qxd2 {[%clk 0:01:08.6]} 19. Rxd2 {[%clk 0:02:30.4]}
19... Bxg2 {[%clk 0:01:08.8]} 20. Kxg2 {[%clk 0:02:31.3]} 20... Nc5 {[%clk
0:00:56.5]} 21. Red1 {[%clk 0:02:29.1]} 21... Rxd2 {[%clk 0:00:42.4]} 22. Rxd2
{[%clk 0:02:30]} 22... a5 {[%clk 0:00:41.8]} 23. a3 {[%clk 0:02:29.3]} 23... a4
{[%clk 0:00:41]} 24. Ne1 {[%clk 0:02:09.7]} 24... f6 {[%clk 0:00:34.2]} 25. Kf1
{[%clk 0:02:02.8]} 25... Kf7 {[%clk 0:00:32.6]} 26. Ke2 {[%clk 0:02:02.6]} 26...
f5 {[%clk 0:00:25.3]} 27. Nf3 {[%clk 0:01:53.9]} 27... h6 {[%clk 0:00:22.4]} 28.
exf5 {[%clk 0:01:51.6]} 28... gxf5 {[%clk 0:00:22.3]} 29. Nh4 {[%clk 0:01:52.1]}
29... Ke6 {[%clk 0:00:21.6]} 30. f3 {[%clk 0:01:32.7]} 30... Nf6 {[%clk
0:00:20.6]} 31. Kf2 {[%clk 0:01:29.9]} 31... Nb3 {[%clk 0:00:20]} 32. Re2 {[%clk
0:01:26.6]} 32... Nd4 {[%clk 0:00:19.7]} 33. Rd2 {[%clk 0:01:25]} 33... Nb3
{[%clk 0:00:17.5]} 34. Re2 {[%clk 0:01:25.2]} 34... Nc5 {[%clk 0:00:17.7]} 35.
Ng6 {[%clk 0:01:23]} 35... Nd3+ {[%clk 0:00:13]} 36. Ke3 {[%clk 0:01:23.2]}
36... Rd8 {[%clk 0:00:13.3]} 37. Rd2 {[%clk 0:01:20.9]} 37... f4+ {[%clk
0:00:11.2]} 38. gxf4 {[%clk 0:01:18.9]} 38... Rg8 {[%clk 0:00:05]} 39. f5+
{[%clk 0:01:09.3]} 1-0

[Event "Late-Titled-Tuesday-Blitz-January-23-2024"]
[Site "Chess.com"]
[Date "2024.01.23"]
[Round "6"]
[White "Road2GM3000"]
[Black "jefferyx"]
[Result "0-1"]
[WhiteElo "2486"]
[BlackElo "2992"]
[TimeControl "180+1"]
[EndTime "15:04:14 PST"]
[Termination "jefferyx won on time"]

1. d4 {[%clk 0:03:00.9]} 1... d5 {[%clk 0:02:59.5]} 2. c4 {[%clk 0:03:01.3]}
2... e6 {[%clk 0:03:00.1]} 3. Nc3 {[%clk 0:03:01.6]} 3... Nf6 {[%clk 0:03:00.4]}
4. cxd5 {[%clk 0:03:02.1]} 4... exd5 {[%clk 0:03:01.3]} 5. Bg5 {[%clk
0:03:01.9]} 5... c6 {[%clk 0:03:02]} 6. e3 {[%clk 0:03:02.2]} 6... Bd6 {[%clk
0:03:02.6]} 7. Bd3 {[%clk 0:03:01.3]} 7... O-O {[%clk 0:03:03]} 8. Nf3 {[%clk
0:02:57.6]} 8... Be6 {[%clk 0:03:00.8]} 9. Ne5 {[%clk 0:02:53.4]} 9... c5 {[%clk
0:03:01.1]} 10. f4 {[%clk 0:02:48.3]} 10... Nc6 {[%clk 0:02:56.3]} 11. O-O
{[%clk 0:02:42.2]} 11... h6 {[%clk 0:02:53.9]} 12. Bh4 {[%clk 0:02:17.8]} 12...
cxd4 {[%clk 0:02:53.5]} 13. Nxc6 {[%clk 0:02:17.4]} 13... bxc6 {[%clk
0:02:53.1]} 14. exd4 {[%clk 0:02:17.9]} 14... Re8 {[%clk 0:02:38.6]} 15. Kh1
{[%clk 0:02:17.3]} 15... Be7 {[%clk 0:02:37.9]} 16. f5 {[%clk 0:02:00.1]} 16...
Bd7 {[%clk 0:02:38.1]} 17. Qf3 {[%clk 0:01:59.8]} 17... Qb6 {[%clk 0:02:34.3]}
18. Ne2 {[%clk 0:01:33.1]} 18... Qxb2 {[%clk 0:02:30.2]} 19. Rab1 {[%clk
0:01:30.3]} 19... Qxa2 {[%clk 0:02:23.2]} 20. Rb7 {[%clk 0:01:30.8]} 20... Rab8
{[%clk 0:02:04.2]} 21. Rc7 {[%clk 0:01:21.9]} 21... Qa5 {[%clk 0:02:01.6]} 22.
Bg3 {[%clk 0:01:17.1]} 22... Rb3 {[%clk 0:01:51.3]} 23. Be5 {[%clk 0:01:14.5]}
23... Bd8 {[%clk 0:01:27.1]} 24. Rxd7 {[%clk 0:00:18.1]} 24... Nxd7 {[%clk
0:01:27]} 25. f6 {[%clk 0:00:18.5]} 25... Nxf6 {[%clk 0:01:16.2]} 26. Qf5 {[%clk
0:00:16.8]} 26... Qd2 {[%clk 0:01:07.9]} 27. Nf4 {[%clk 0:00:11]} 27... Rc3
{[%clk 0:00:43.1]} 28. Bxf6 {[%clk 0:00:10]} 28... Bxf6 {[%clk 0:00:44]} 29.
Qh7+ {[%clk 0:00:02.9]} 29... Kf8 {[%clk 0:00:44.3]} 30. Qh8+ {[%clk 0:00:02.1]}
30... Ke7 {[%clk 0:00:44.5]} 0-1

[Event "Late-Titled-Tuesday-Blitz-January-23-2024"]
[Site "Chess.com"]
[Date "2024.01.23"]
[Round "6"]
[White "Kostukov_Alex"]
[Black "Vicmary2005"]
[Result "1-0"]
[WhiteElo "2300"]
[BlackElo "1982"]
[TimeControl "180+1"]
[EndTime "15:04:21 PST"]
[Termination "Kostukov_Alex won on time"]

1. g3 {[%clk 0:02:54.3]} 1... Nf6 {[%clk 0:02:57.8]} 2. Bg2 {[%clk 0:02:54.8]}
2... g6 {[%clk 0:02:58]} 3. c4 {[%clk 0:02:53.9]} 3... Bg7 {[%clk 0:02:58.4]} 4.
Nf3 {[%clk 0:02:54.8]} 4... O-O {[%clk 0:02:58.8]} 5. O-O {[%clk 0:02:55.7]}
5... d6 {[%clk 0:02:59]} 6. d4 {[%clk 0:02:56.3]} 6... Nc6 {[%clk 0:02:59.2]} 7.
Nc3 {[%clk 0:02:57.2]} 7... a6 {[%clk 0:02:59.4]} 8. h3 {[%clk 0:02:57.8]} 8...
Rb8 {[%clk 0:02:59.5]} 9. e4 {[%clk 0:02:57.3]} 9... e5 {[%clk 0:02:55.5]} 10.
Be3 {[%clk 0:02:49]} 10... exd4 {[%clk 0:02:02.8]} 11. Nxd4 {[%clk 0:02:47.9]}
11... Re8 {[%clk 0:01:58.9]} 12. Rc1 {[%clk 0:02:38.9]} 12... Ne5 {[%clk
0:01:28.9]} 13. b3 {[%clk 0:02:36.5]} 13... c6 {[%clk 0:01:21.4]} 14. Nde2
{[%clk 0:02:27]} 14... Qc7 {[%clk 0:01:04.8]} 15. f4 {[%clk 0:02:20.1]} 15...
Ned7 {[%clk 0:01:03.4]} 16. Qd2 {[%clk 0:02:14.2]} 16... b5 {[%clk 0:00:46.5]}
17. cxb5 {[%clk 0:02:07]} 17... axb5 {[%clk 0:00:47.4]} 18. Rfd1 {[%clk
0:02:04.3]} 18... Bf8 {[%clk 0:00:13.3]} 19. Nd4 {[%clk 0:01:37.6]} 19... b4
{[%clk 0:00:12.5]} 20. Nd5 {[%clk 0:01:37.6]} 20... Nxd5 {[%clk 0:00:11.6]} 21.
exd5 {[%clk 0:01:37.8]} 21... c5 {[%clk 0:00:11.9]} 22. Nc6 {[%clk 0:01:37.9]}
22... Ra8 {[%clk 0:00:11.1]} 23. Rc2 {[%clk 0:01:32.1]} 23... Nf6 {[%clk
0:00:10.5]} 24. Bf2 {[%clk 0:01:31.1]} 24... Bf5 {[%clk 0:00:10.3]} 25. Rb2
{[%clk 0:01:24.7]} 25... Bg7 {[%clk 0:00:08.6]} 26. g4 {[%clk 0:01:19.5]} 26...
Be4 {[%clk 0:00:08.1]} 27. g5 {[%clk 0:01:11.5]} 27... Bxg2 {[%clk 0:00:08]} 28.
gxf6 {[%clk 0:01:10.8]} 28... Bxf6 {[%clk 0:00:08.9]} 29. Kxg2 {[%clk
0:01:10.1]} 29... Bxb2 {[%clk 0:00:08.8]} 30. Qxb2 {[%clk 0:01:10.3]} 30... Qd7
{[%clk 0:00:06.2]} 31. Rd2 {[%clk 0:01:07.1]} 31... Qf5 {[%clk 0:00:06]} 32. Bg3
{[%clk 0:01:02.7]} 32... Qe4+ {[%clk 0:00:05.7]} 33. Kh2 {[%clk 0:01:02.3]}
33... Qe3 {[%clk 0:00:05.4]} 34. Rg2 {[%clk 0:01:00.8]} 34... Qe4 {[%clk
0:00:02.1]} 35. Qf6 {[%clk 0:00:59.5]} 35... Qxd5 {[%clk 0:00:02.1]} 36. Ne7+
{[%clk 0:00:59.6]} 36... Rxe7 {[%clk 0:00:01.5]} 37. Qxe7 {[%clk 0:01:00.5]} 1-0

[Event "Late-Titled-Tuesday-Blitz-January-23-2024"]
[Site "Chess.com"]
[Date "2024.01.23"]
[Round "6"]
[White "dropstoneDP"]
[Black "MyDream003"]
[Result "1-0"]
[WhiteElo "3048"]
[BlackElo "2847"]
[TimeControl "180+1"]
[EndTime "15:04:22 PST"]
[Termination "dropstoneDP won by checkmate"]

1. e4 {[%clk 0:02:49.6]} 1... c6 {[%clk 0:02:51.1]} 2. d4 {[%clk 0:02:49.3]}
2... d5 {[%clk 0:02:51.2]} 3. e5 {[%clk 0:02:49.3]} 3... Bf5 {[%clk 0:02:50.3]}
4. Nd2 {[%clk 0:02:49.9]} 4... e6 {[%clk 0:02:49.6]} 5. Nb3 {[%clk 0:02:50.5]}
5... Nd7 {[%clk 0:02:48.2]} 6. Nf3 {[%clk 0:02:51.1]} 6... h6 {[%clk 0:02:47.6]}
7. Be2 {[%clk 0:02:51.1]} 7... Ne7 {[%clk 0:02:47.9]} 8. O-O {[%clk 0:02:50.8]}
8... Qc7 {[%clk 0:02:47.7]} 9. a4 {[%clk 0:02:50.4]} 9... g5 {[%clk 0:02:41.4]}
10. a5 {[%clk 0:02:50.2]} 10... Bg7 {[%clk 0:02:40.5]} 11. Ne1 {[%clk
0:02:37.4]} 11... c5 {[%clk 0:02:30.7]} 12. dxc5 {[%clk 0:02:33.1]} 12... Bxe5
{[%clk 0:02:20.5]} 13. Nf3 {[%clk 0:02:32]} 13... Bg7 {[%clk 0:02:18]} 14. Nfd4
{[%clk 0:02:31.9]} 14... a6 {[%clk 0:02:15.1]} 15. Be3 {[%clk 0:02:29.7]} 15...
Bg6 {[%clk 0:02:07.3]} 16. f4 {[%clk 0:02:14.9]} 16... gxf4 {[%clk 0:01:50]} 17.
Bxf4 {[%clk 0:02:15.8]} 17... e5 {[%clk 0:01:50.6]} 18. Bg3 {[%clk 0:02:14.6]}
18... Nxc5 {[%clk 0:01:51.2]} 19. Bh5 {[%clk 0:01:43.3]} 19... Nxb3 {[%clk
0:01:37.5]} 20. Bxg6 {[%clk 0:01:42.1]} 20... Nxg6 {[%clk 0:01:15.7]} 21. Nf5
{[%clk 0:01:39.4]} 21... Bf8 {[%clk 0:00:54.2]} 22. cxb3 {[%clk 0:01:38.8]}
22... Qd7 {[%clk 0:00:45.9]} 23. Rc1 {[%clk 0:01:36.3]} 23... Rg8 {[%clk
0:00:33.6]} 24. Kh1 {[%clk 0:01:33.6]} 24... Bb4 {[%clk 0:00:25.3]} 25. Nxh6
{[%clk 0:01:31.5]} 25... Rf8 {[%clk 0:00:25.7]} 26. Qh5 {[%clk 0:01:29.1]} 26...
Bd2 {[%clk 0:00:23.3]} 27. Nxf7 {[%clk 0:01:15.3]} 27... Bxc1 {[%clk 0:00:15.9]}
28. Qxg6 {[%clk 0:01:15.2]} 28... Qc6 {[%clk 0:00:02.8]} 29. Nd6+ {[%clk
0:01:03.7]} 29... Kd7 {[%clk 0:00:03.3]} 30. Qg7+ {[%clk 0:01:04.3]} 30... Kxd6
{[%clk 0:00:03.7]} 31. Qxe5+ {[%clk 0:01:02.5]} 31... Kd7 {[%clk 0:00:03.8]} 32.
Qg7+ {[%clk 0:01:01.8]} 32... Ke6 {[%clk 0:00:04.2]} 33. Re1+ {[%clk 0:00:55.3]}
33... Kf5 {[%clk 0:00:04.5]} 34. Re5# {[%clk 0:00:54.6]} 1-0

[Event "Late-Titled-Tuesday-Blitz-January-23-2024"]
[Site "Chess.com"]
[Date "2024.01.23"]
[Round "6"]
[White "reevecanada"]
[Black "Actuary44"]
[Result "1-0"]
[WhiteElo "2645"]
[BlackElo "2479"]
[TimeControl "180+1"]
[EndTime "15:04:22 PST"]
[Termination "reevecanada won by resignation"]

1. e4 {[%clk 0:03:00.9]} 1... b6 {[%clk 0:02:48.9]} 2. d4 {[%clk 0:02:54.9]}
2... Bb7 {[%clk 0:02:49.3]} 3. Nc3 {[%clk 0:02:54.7]} 3... e6 {[%clk 0:02:50]}
4. Bd3 {[%clk 0:02:53.6]} 4... Nf6 {[%clk 0:02:50.6]} 5. Nge2 {[%clk 0:02:53]}
5... d5 {[%clk 0:02:50.9]} 6. e5 {[%clk 0:02:51.8]} 6... Nfd7 {[%clk 0:02:51.4]}
7. O-O {[%clk 0:02:51.7]} 7... c5 {[%clk 0:02:51.6]} 8. Bb5 {[%clk 0:02:47.1]}
8... Nc6 {[%clk 0:02:46.8]} 9. f4 {[%clk 0:02:40.5]} 9... Qc7 {[%clk 0:02:33.9]}
10. Bxc6 {[%clk 0:02:34.4]} 10... Bxc6 {[%clk 0:02:33.1]} 11. f5 {[%clk
0:02:34.6]} 11... O-O-O {[%clk 0:02:29.4]} 12. fxe6 {[%clk 0:02:32.8]} 12...
fxe6 {[%clk 0:02:30.3]} 13. Nf4 {[%clk 0:02:32.1]} 13... Re8 {[%clk 0:02:28.6]}
14. Qh5 {[%clk 0:02:31.4]} 14... g6 {[%clk 0:02:22.8]} 15. Nxg6 {[%clk
0:02:28.8]} 15... hxg6 {[%clk 0:02:23.7]} 16. Qxh8 {[%clk 0:02:28.3]} 16... cxd4
{[%clk 0:02:22.7]} 17. Ne2 {[%clk 0:02:21.3]} 17... d3 {[%clk 0:02:22.7]} 18.
Nd4 {[%clk 0:02:21.3]} 18... Qxe5 {[%clk 0:02:14.8]} 19. Qxe5 {[%clk 0:02:19.4]}
19... Nxe5 {[%clk 0:02:15.7]} 20. Bf4 {[%clk 0:02:19]} 20... Nd7 {[%clk
0:01:39.4]} 21. Nxc6 {[%clk 0:02:17.9]} 21... e5 {[%clk 0:01:39.3]} 22. Be3
{[%clk 0:02:03.4]} 22... Kb7 {[%clk 0:01:29.1]} 23. Nb4 {[%clk 0:02:01.6]} 23...
Bxb4 {[%clk 0:01:27.4]} 24. cxd3 {[%clk 0:02:00.5]} 24... d4 {[%clk 0:00:58.9]}
25. Bg5 {[%clk 0:01:51.7]} 25... Kc6 {[%clk 0:00:45.8]} 26. a3 {[%clk
0:01:48.4]} 26... Be7 {[%clk 0:00:42]} 27. Rac1+ {[%clk 0:01:31.1]} 27... Kd5
{[%clk 0:00:40.5]} 28. Bxe7 {[%clk 0:01:30.4]} 28... Rxe7 {[%clk 0:00:41.4]} 29.
Rc7 {[%clk 0:01:30.1]} 29... a5 {[%clk 0:00:39.5]} 30. Rfc1 {[%clk 0:01:28.4]}
30... g5 {[%clk 0:00:31.6]} 31. b4 {[%clk 0:01:27.3]} 31... axb4 {[%clk
0:00:30]} 32. axb4 {[%clk 0:01:28.2]} 32... Rf7 {[%clk 0:00:27.2]} 33. b5 {[%clk
0:01:27.5]} 33... e4 {[%clk 0:00:26.9]} 34. dxe4+ {[%clk 0:01:23.1]} 34... Kxe4
{[%clk 0:00:27.8]} 35. R1c6 {[%clk 0:01:21.9]} 35... Ne5 {[%clk 0:00:18.9]} 36.
Rxf7 {[%clk 0:01:20.1]} 36... Nxf7 {[%clk 0:00:19.8]} 37. Rxb6 {[%clk
0:01:19.5]} 37... d3 {[%clk 0:00:20.4]} 38. Re6+ {[%clk 0:01:16.9]} 38... Kd5
{[%clk 0:00:18.7]} 39. Re3 {[%clk 0:01:13.8]} 39... Ne5 {[%clk 0:00:16.6]} 40.
Rxe5+ {[%clk 0:01:08.6]} 40... Kxe5 {[%clk 0:00:17.5]} 41. Kf2 {[%clk
0:01:08.1]} 41... Kd5 {[%clk 0:00:15.8]} 42. Ke3 {[%clk 0:01:07.5]} 42... Kc4
{[%clk 0:00:11.6]} 43. Kd2 {[%clk 0:01:03.6]} 43... g4 {[%clk 0:00:08]} 44. b6
{[%clk 0:01:02.9]} 1-0

[Event "Late-Titled-Tuesday-Blitz-January-23-2024"]
[Site "Chess.com"]
[Date "2024.01.23"]
[Round "6"]
[White "tigurones"]
[Black "TheAlienParty"]
[Result "0-1"]
[WhiteElo "2481"]
[BlackElo "2367"]
[TimeControl "180+1"]
[EndTime "15:04:22 PST"]
[Termination "TheAlienParty won on time"]

1. d4 {[%clk 0:03:00.9]} 1... Nf6 {[%clk 0:02:55.7]} 2. g3 {[%clk 0:03:00.9]}
2... d5 {[%clk 0:02:51.7]} 3. Bg2 {[%clk 0:03:01.3]} 3... c6 {[%clk 0:02:51.8]}
4. Nf3 {[%clk 0:03:01.6]} 4... Bf5 {[%clk 0:02:51.2]} 5. O-O {[%clk 0:03:02]}
5... g6 {[%clk 0:02:47.8]} 6. c4 {[%clk 0:03:02.3]} 6... Bg7 {[%clk 0:02:46.6]}
7. Nc3 {[%clk 0:03:01.3]} 7... O-O {[%clk 0:02:45.6]} 8. cxd5 {[%clk 0:02:58.4]}
8... cxd5 {[%clk 0:02:44.2]} 9. Qb3 {[%clk 0:02:58.3]} 9... b6 {[%clk
0:02:08.2]} 10. Bf4 {[%clk 0:02:44.2]} 10... Nc6 {[%clk 0:02:06.3]} 11. Rac1
{[%clk 0:02:35.2]} 11... Na5 {[%clk 0:02:05.5]} 12. Qa4 {[%clk 0:02:29.2]} 12...
Rc8 {[%clk 0:01:56.2]} 13. Ne5 {[%clk 0:02:19.4]} 13... Ne4 {[%clk 0:01:36.6]}
14. Nxe4 {[%clk 0:02:09.4]} 14... Bxe4 {[%clk 0:01:36]} 15. Bxe4 {[%clk
0:02:01.4]} 15... dxe4 {[%clk 0:01:35.4]} 16. b3 {[%clk 0:01:37.1]} 16... Qd5
{[%clk 0:01:28.6]} 17. e3 {[%clk 0:01:17.5]} 17... h6 {[%clk 0:01:26]} 18. g4
{[%clk 0:01:08.2]} 18... g5 {[%clk 0:01:20.7]} 19. Bg3 {[%clk 0:01:08.2]} 19...
Qe6 {[%clk 0:01:03.9]} 20. h3 {[%clk 0:00:42.1]} 20... h5 {[%clk 0:00:55.7]} 21.
b4 {[%clk 0:00:34.6]} 21... Bxe5 {[%clk 0:00:53.4]} 22. dxe5 {[%clk 0:00:17.2]}
22... Nc4 {[%clk 0:00:52.8]} 23. Qd1 {[%clk 0:00:10]} 23... Rfd8 {[%clk
0:00:48.8]} 24. Rxc4 {[%clk 0:00:01.7]} 24... Rxd1 {[%clk 0:00:47.4]} 25. Rxc8+
{[%clk 0:00:01.7]} 25... Qxc8 {[%clk 0:00:47.2]} 26. Rxd1 {[%clk 0:00:02.6]}
26... hxg4 {[%clk 0:00:46.2]} 27. hxg4 {[%clk 0:00:03.1]} 27... Qxg4 {[%clk
0:00:45.3]} 28. Rd8+ {[%clk 0:00:01.7]} 28... Kg7 {[%clk 0:00:45]} 29. e6 {[%clk
0:00:01.7]} 29... Qxe6 {[%clk 0:00:43.9]} 0-1

[Event "Late-Titled-Tuesday-Blitz-January-23-2024"]
[Site "Chess.com"]
[Date "2024.01.23"]
[Round "6"]
[White "jjbolanos"]
[Black "Yurovskykh_Oleksandr"]
[Result "0-1"]
[WhiteElo "2180"]
[BlackElo "2620"]
[TimeControl "180+1"]
[EndTime "15:04:28 PST"]
[Termination "Yurovskykh_Oleksandr won by checkmate"]

1. e4 {[%clk 0:02:59.9]} 1... e6 {[%clk 0:02:59.7]} 2. d4 {[%clk 0:02:59.5]}
2... d5 {[%clk 0:03:00.6]} 3. Bd3 {[%clk 0:02:59.5]} 3... dxe4 {[%clk
0:02:59.9]} 4. Bxe4 {[%clk 0:03:00.4]} 4... Nf6 {[%clk 0:03:00.5]} 5. Bf3 {[%clk
0:03:01]} 5... Nbd7 {[%clk 0:03:01.1]} 6. Ne2 {[%clk 0:03:01.6]} 6... Bd6 {[%clk
0:03:00.9]} 7. O-O {[%clk 0:03:01.2]} 7... O-O {[%clk 0:03:01.4]} 8. c4 {[%clk
0:02:49.2]} 8... e5 {[%clk 0:03:01.2]} 9. dxe5 {[%clk 0:02:45.1]} 9... Nxe5
{[%clk 0:03:00.8]} 10. Bd5 {[%clk 0:02:43.9]} 10... c6 {[%clk 0:02:55.7]} 11.
Nbc3 {[%clk 0:02:21.4]} 11... cxd5 {[%clk 0:02:52.1]} 12. cxd5 {[%clk
0:02:22.3]} 12... a6 {[%clk 0:02:45.6]} 13. Bg5 {[%clk 0:02:21.9]} 13... h6
{[%clk 0:02:45]} 14. Bh4 {[%clk 0:02:07.9]} 14... Ng6 {[%clk 0:02:40.8]} 15. Bg3
{[%clk 0:02:02.3]} 15... Bxg3 {[%clk 0:02:31.8]} 16. hxg3 {[%clk 0:01:51.6]}
16... Qd6 {[%clk 0:02:31.4]} 17. Qd2 {[%clk 0:01:49]} 17... b5 {[%clk
0:02:30.8]} 18. Rfd1 {[%clk 0:01:49.2]} 18... Bb7 {[%clk 0:02:31.3]} 19. Nd4
{[%clk 0:01:44.5]} 19... Rfd8 {[%clk 0:02:27.1]} 20. Nf5 {[%clk 0:01:34.4]}
20... Qe5 {[%clk 0:02:26.7]} 21. Ne3 {[%clk 0:01:27.9]} 21... Rd7 {[%clk
0:02:18.4]} 22. f4 {[%clk 0:01:21.6]} 22... Qd6 {[%clk 0:02:13.6]} 23. Rac1
{[%clk 0:01:16.6]} 23... Rad8 {[%clk 0:02:13.6]} 24. Nf5 {[%clk 0:01:00.5]}
24... Qb6+ {[%clk 0:02:13.1]} 25. Kh1 {[%clk 0:00:56.8]} 25... Ng4 {[%clk
0:02:10.6]} 26. Rc2 {[%clk 0:00:50.6]} 26... Qf6 {[%clk 0:01:56.7]} 27. Nd4
{[%clk 0:00:37.5]} 27... Bxd5 {[%clk 0:01:49.3]} 28. Qe2 {[%clk 0:00:34.2]}
28... h5 {[%clk 0:01:37.9]} 29. Rcd2 {[%clk 0:00:28.1]} 29... Bb7 {[%clk
0:01:30.1]} 30. Ne4 {[%clk 0:00:19.9]} 30... Bxe4 {[%clk 0:01:21.3]} 31. Qxe4
{[%clk 0:00:20.8]} 31... h4 {[%clk 0:01:15.8]} 32. f5 {[%clk 0:00:12.5]} 32...
Rxd4 {[%clk 0:01:08.2]} 33. Rxd4 {[%clk 0:00:08.9]} 33... Nf2+ {[%clk
0:01:08.4]} 34. Kg1 {[%clk 0:00:08.5]} 34... Nxe4 {[%clk 0:01:08.2]} 35. Rxd8+
{[%clk 0:00:09.1]} 35... Kh7 {[%clk 0:01:08.3]} 36. fxg6+ {[%clk 0:00:09.6]}
36... fxg6 {[%clk 0:01:05.2]} 37. Re8 {[%clk 0:00:05.6]} 37... Qf2+ {[%clk
0:01:01.8]} 38. Kh1 {[%clk 0:00:06.1]} 38... Nxg3+ {[%clk 0:00:59.4]} 39. Kh2
{[%clk 0:00:05.8]} 39... Nf1+ {[%clk 0:00:59.3]} 40. Kh1 {[%clk 0:00:06.3]}
40... Ne3 {[%clk 0:00:56.2]} 41. Rdd8 {[%clk 0:00:05.3]} 41... Qxg2# {[%clk
0:00:55.9]} 0-1